[Event "32nd Panamerican Youth 2022"]
[Site "Montevideo"]
[Date "2022.07.02"]
[Round "9.14"]
[White "Adam, Ernestina"]
[Black "Villegas Ampuero, Consuelo"]
[Result "1-0"]
[ECO "B40"]
[WhiteElo "1723"]
[BlackElo "1333"]
[Annotator "NA RC"]
[PlyCount "55"]
[EventDate "2022.06.26"]
[EventType "swiss"]
[EventCountry "URU"]
[SourceTitle "playchess.com"]
[Source "ChessBase"]
[SourceQuality "1"]
[TimeControl "5400+30"]

1. e4 {[%emt 0:00:14]} c5 {[%emt 0:00:10]} 2. Nf3 {[%emt 0:00:09]} e6 {[%emt 0:00:06]} 3. c3 {[%emt 0:01:56]} Nf6 {[%emt 0:09:15]} 4. e5 {[%emt 0:00:55]} Nd5 {[%emt 0:00:25]} 5. d4 {[%emt 0:01:02]} cxd4 {[%emt 0:01:00]} 6. cxd4 {[%emt 0:01:41]} Nc6 {[%emt 0:01:54]} 7. Nc3 {[%emt 0:05:50]} Qa5 {[%emt 0:08:07]} 8. Bd2 {[%emt 0:07:32]} Bb4 {[%emt 0:03:13]} 9. a3 {[%emt 0:07:44]} Bxc3 {[%emt 0:03:30]} 10. bxc3 {[%emt 0:02:00]} Qc7 {[%emt 0:00:55]} 11. c4 {[%emt 0:03:52]} Nde7 {[%emt 0:01:22]} 12. Bd3 d6 13. exd6 Qxd6 14. Bc3 O-O 15. Qd2 Nf5 16. Bxf5 exf5 17. O-O Rd8 18. d5 Ne7 19. Qd4 f6 20. Bb4 Qd7 21. Bxe7 Qxe7 22. Rfe1 Qd6 23. c5 Qd7 24. d6 Kh8 25. Re7 Qc6 26. Rae1 b6 27. Rxg7 Qxc5 28. Qxf6 1-0

[Event "32nd Panamerican Youth 2022"]
[Site "Montevideo"]
[Date "2022.07.02"]
[Round "9.15"]
[White "Ticona Rocabado, Licael Roderick"]
[Black "Cabiativa, Juan Esteban"]
[Result "*"]
[ECO "A45"]
[WhiteElo "2203"]
[BlackElo "2019"]
[Annotator "RC"]
[PlyCount "63"]
[EventDate "2022.06.26"]
[EventType "swiss"]
[EventCountry "URU"]
[SourceTitle "playchess.com"]
[Source "ChessBase"]
[SourceQuality "1"]
[TimeControl "5400+30"]

1. d4 {[%emt 0:00:04]} Nf6 {[%emt 0:00:23]} 2. Nc3 {[%emt 0:00:20]} d5 {[%emt 0:00:45]} 3. Bf4 {[%emt 0:00:31]} g6 {[%emt 0:01:16]} 4. h3 {[%emt 0:03:43]} Bg7 {[%emt 0:03:24]} 5. g4 {[%emt 0:03:18]} c5 {[%emt 0:07:19]} 6. e3 {[%emt 0:03:13]} O-O {[%emt 0:08:34]} 7. Bg2 {[%emt 0:03:25]} Be6 {[%emt 0:05:18]} 8. Nge2 {[%emt 0:05:02]} Nc6 {[%emt 0:05:18]} 9. Ng3 {[%emt 0:05:43]} cxd4 {[%emt 0:07:00]} 10. exd4 {[%emt 0:02:18]} Qb6 {[%emt 0:00:50]} 11. g5 {[%emt 0:08:16]} Nd7 {[%emt 0:01:06]} 12. O-O {[%emt 0:02:36]} Qxb2 {[%emt 0:21:07]} 13. Nxd5 {[%emt 0:11:27]} Bxd5 {[%emt 0:03:13]} 14. Bxd5 {[%emt 0:03:46]} Nb6 {[%emt 0:01:54]} 15. Bxc6 {[%emt 0:04:34]} bxc6 {[%emt 0:00:43]} 16. Be3 {[%emt 0:10:36]} Rad8 {[%emt 0:01:40]} 17. Qf3 {[%emt 0:01:05]} Bxd4 {[%emt 0:11:49]} 18. Bxd4 {[%emt 0:03:00]} Qxd4 {[%emt 0:00:33]} 19. Qxc6 {[%emt 0:08:55]} Qh4 {[%emt 0:02:04]} 20. Qe4 {[%emt 0:02:52]} Qxg5 {[%emt 0:02:31]} 21. h4 {[%emt 0:01:38]} Qf6 {[%emt 0:01:43]} 22. Rae1 {[%emt 0:02:36]} e6 {[%emt 0:03:35]} 23. Qh1 {[%emt 0:05:24]} Nc4 {[%emt 0:02:04]} 24. Rd1 {[%emt 0:02:58]} Nd2 {[%emt 0:03:51]} 25. Rxd2 {[%emt 0:02:23]} Rxd2 {[%emt 0:00:07]} 26. Ne4 {[%emt 0:00:12]} Qf4 {[%emt 0:00:12]} 27. Nxd2 {[%emt 0:00:37]} Qxd2 {[%emt 0:00:06]} 28. Qb7 {[%emt 0:00:41]} Qxc2 {[%emt 0:01:11]} 29. Qxa7 {[%emt 0:00:37]} Qe4 {[%emt 0:00:29]} 30. Qe7 {[%emt 0:01:17]} Qg4+ {[%emt 0:01:00]} 31. Kh1 Rc8 {[%emt 0:01:09]} 32. Rg1 {[%emt 0:00:00]} *

[Event "32nd Panamerican Youth 2022"]
[Site "Montevideo"]
[Date "2022.07.02"]
[Round "9.15"]
[White "Da Cunha, Gabriela Goes"]
[Black "Mayeregger Gonzalez, Fiorella"]
[Result "1/2-1/2"]
[ECO "D91"]
[WhiteElo "1719"]
[BlackElo "1312"]
[Annotator "NA RC"]
[PlyCount "63"]
[EventDate "2022.06.26"]
[EventType "swiss"]
[EventCountry "URU"]
[SourceTitle "playchess.com"]
[Source "ChessBase"]
[SourceQuality "1"]
[TimeControl "5400+30"]

1. d4 {[%emt 0:00:04]} Nf6 {[%emt 0:00:23]} 2. c4 {[%emt 0:00:30]} g6 {[%emt 0:00:30]} 3. Nc3 {[%emt 0:00:20]} Bg7 {[%emt 0:00:45]} 4. Nf3 {[%emt 0:00:30]} d5 {[%emt 0:00:46]} 5. Bg5 {[%emt 0:01:53]} Ne4 {[%emt 0:01:01]} 6. cxd5 {[%emt 0:01:09]} Nxg5 {[%emt 0:00:08]} 7. Nxg5 {[%emt 0:00:12]} e6 {[%emt 0:00:05]} 8. Nf3 {[%emt 0:00:08]} exd5 {[%emt 0:00:20]} 9. e3 {[%emt 0:03:37]} O-O {[%emt 0:00:25]} 10. Be2 {[%emt 0:01:42]} c6 {[%emt 0:01:08]} 11. O-O {[%emt 0:02:11]} Be6 {[%emt 0:03:02]} 12. b4 {[%emt 0:04:34]} Nd7 {[%emt 0:04:10]} 13. Rc1 {[%emt 0:09:11]} b5 {[%emt 0:03:13]} 14. a4 {[%emt 0:05:20]} a6 {[%emt 0:02:00]} 15. a5 {[%emt 0:01:35]} f5 {[%emt 0:01:16]} 16. Na2 {[%emt 0:09:12]} Rc8 {[%emt 0:02:37]} 17. g3 {[%emt 0:09:00]} Qe7 {[%emt 0:03:40]} 18. Rc2 {[%emt 0:07:54]} Rc7 {[%emt 0:02:44]} 19. Qd2 {[%emt 0:05:34]} Rfc8 {[%emt 0:02:33]} 20. Nc1 {[%emt 0:02:35]} Bf7 {[%emt 0:02:56]} 21. Nd3 {[%emt 0:02:32]} h6 {[%emt 0:06:29]} 22. Rfc1 {[%emt 0:04:20]} Qd6 {[%emt 0:04:16]} 23. Nc5 {[%emt 0:00:30]} Nxc5 {[%emt 0:00:30]} 24. Rxc5 {[%emt 0:00:30]} Qe6 {[%emt 0:00:30]} 25. Ne1 {[%emt 0:00:30]} Bf8 {[%emt 0:00:30]} 26. R5c2 {[%emt 0:00:30]} Bd6 {[%emt 0:00:30]} 27. Nd3 {[%emt 0:00:30]} Qe7 {[%emt 0:00:30]} 28. Nc5 {[%emt 0:00:30]} Bxc5 {[%emt 0:00:30]} 29. Rxc5 {[%emt 0:00:30]} g5 {[%emt 0:00:30]} 30. Bd3 {[%emt 0:00:30]} Be6 {[%emt 0:00:30]} 31. Qe2 {[%emt 0:00:30]} Kg7 {[%emt 0:00:30]} 32. Qh5 {[%emt 0:00:30]} 1/2-1/2

[Event "32nd Panamerican Youth 2022"]
[Site "Montevideo"]
[Date "2022.07.02"]
[Round "9.16"]
[White "Diaz Bartolo, Elizabeth Schahrazad"]
[Black "Wilson, Hannah"]
[Result "1-0"]
[ECO "A01"]
[WhiteElo "1603"]
[BlackElo "1556"]
[Annotator "NA RC"]
[PlyCount "67"]
[EventDate "2022.06.26"]
[EventType "swiss"]
[EventCountry "URU"]
[SourceTitle "playchess.com"]
[Source "ChessBase"]
[SourceQuality "1"]
[TimeControl "5400+30"]

1. b3 {[%emt 0:00:09]} d5 {[%emt 0:00:44]} 2. Bb2 {[%emt 0:00:06]} c5 {[%emt 0:01:08]} 3. g3 {[%emt 0:00:57]} Nc6 {[%emt 0:01:49]} 4. Bg2 {[%emt 0:00:07]} e5 $15 {[%emt 0:02:35]} 5. e3 {[%emt 0:01:00]} Nf6 {[%emt 0:01:27]} 6. Ne2 {[%emt 0:00:19]} Be6 {[%emt 0:10:53]} 7. O-O {[%emt 0:02:35]} Be7 {[%emt 0:02:25]} 8. d3 {[%emt 0:00:08]} O-O {[%emt 0:00:47]} 9. Nd2 {[%emt 0:00:42]} Qd7 {[%emt 0:00:45]} 10. f4 {[%emt 0:07:43]} Ng4 {[%emt 0:02:53]} 11. Rf3 {[%emt 0:00:46]} d4 {[%emt 0:03:41]} 12. e4 {[%emt 0:06:49]} Ne3 {[%emt 0:04:58]} 13. Qc1 {[%emt 0:03:13]} Bg4 {[%emt 0:03:16]} 14. Rf2 {[%emt 0:01:56]} Nb4 {[%emt 0:04:10]} 15. Nc4 {[%emt 0:06:40]} Nbxc2 {[%emt 0:10:28]} 16. Nxe5 {[%emt 0:02:12]} Qc8 {[%emt 0:01:17]} 17. Rb1 {[%emt 0:04:28]} Nxg2 {[%emt 0:01:37]} 18. Qxc2 {[%emt 0:06:45]} Ne3 {[%emt 0:00:50]} 19. Qd2 {[%emt 0:00:20]} Bh3 {[%emt 0:05:01]} 20. f5 {[%emt 0:12:11]} f6 {[%emt 0:14:34]} 21. Nf3 {[%emt 0:03:58]} Ng4 {[%emt 0:03:04]} 22. Nf4 {[%emt 0:01:56]} Nxf2 {[%emt 0:01:06]} 23. Kxf2 {[%emt 0:01:29]} Bg4 {[%emt 0:00:27]} 24. Nh4 {[%emt 0:03:32]} Bd6 {[%emt 0:03:37]} 25. Nhg2 {[%emt 0:05:38]} Bxf4 {[%emt 0:06:38]} 26. Nxf4 {[%emt 0:00:09]} g5 {[%emt 0:01:17]} 27. Ne6 {[%emt 0:04:11]} Rf7 {[%emt 0:01:46]} 28. Rc1 {[%emt 0:01:27]} b6 {[%emt 0:04:08]} 29. Bxd4 {[%emt 0:01:10]} h6 {[%emt 0:00:57]} 30. Bb2 {[%emt 0:02:06]} Qc6 {[%emt 0:01:24]} 31. h4 {[%emt 0:00:44]} gxh4 {[%emt 0:02:53]} 32. Qxh6 {[%emt 0:01:12]} Qd6 {[%emt 0:02:34]} 33. Qg6+ {[%emt 0:00:16]} Kh8 {[%emt 0:00:11]} 34. Bxf6+ 1-0

[Event "32nd Panamerican Youth 2022"]
[Site "Montevideo"]
[Date "2022.07.02"]
[Round "9.17"]
[White "Lavandeira, Juan Facundo"]
[Black "Zacarias Rodriguez, Santiago"]
[Result "1/2-1/2"]
[ECO "A37"]
[WhiteElo "1766"]
[BlackElo "2075"]
[Annotator "RC"]
[PlyCount "22"]
[EventDate "2022.06.26"]
[EventType "swiss"]
[EventCountry "URU"]
[SourceTitle "playchess.com"]
[Source "ChessBase"]
[SourceQuality "1"]
[TimeControl "5400+30"]

1. c4 {[%emt 0:00:04]} c5 {[%emt 0:02:30]} 2. g3 {[%emt 0:00:12]} g6 {[%emt 0:00:31]} 3. Bg2 {[%emt 0:00:34]} Nc6 {[%emt 0:00:15]} 4. Nc3 {[%emt 0:00:24]} Bg7 {[%emt 0:00:07]} 5. Nf3 {[%emt 0:00:09]} d6 {[%emt 0:04:53]} 6. O-O {[%emt 0:00:24]} e6 {[%emt 0:00:02]} 7. d3 {[%emt 0:00:40]} Nge7 {[%emt 0:00:08]} 8. a3 {[%emt 0:00:35]} O-O {[%emt 0:01:23]} 9. Rb1 {[%emt 0:00:39]} d5 {[%emt 0:20:11]} 10. cxd5 {[%emt 0:03:51]} exd5 {[%emt 0:00:21]} 11. Bf4 Bg4 1/2-1/2

[Event "32nd Panamerican Youth 2022"]
[Site "Montevideo"]
[Date "2022.07.02"]
[Round "9.18"]
[White "Ticona Rocabado, Licael Roderick"]
[Black "Cabiativa, Juan Esteban"]
[Result "1-0"]
[ECO "A06"]
[WhiteElo "2203"]
[BlackElo "2019"]
[Annotator "RC"]
[PlyCount "69"]
[EventDate "2022.06.26"]
[EventType "swiss"]
[EventCountry "URU"]
[SourceTitle "playchess.com"]
[Source "ChessBase"]
[SourceQuality "1"]
[TimeControl "5400+30"]

1. Nf3 {[%emt 0:00:03]} d5 {[%emt 0:05:30]} 2. g3 {[%emt 0:00:07]} Bg4 {[%emt 0:01:25]} 3. Bg2 {[%emt 0:00:26]} c6 {[%emt 0:01:20]} 4. d4 {[%emt 0:00:21]} Nf6 {[%emt 0:04:31]} 5. c3 {[%emt 0:00:57]} e6 {[%emt 0:04:41]} 6. Nbd2 {[%emt 0:00:17]} Be7 {[%emt 0:00:39]} 7. O-O {[%emt 0:00:16]} O-O {[%emt 0:01:29]} 8. Re1 {[%emt 0:01:25]} Nbd7 {[%emt 0:10:47]} 9. e4 {[%emt 0:00:39]} dxe4 {[%emt 0:00:18]} 10. Nxe4 {[%emt 0:00:07]} Nxe4 {[%emt 0:02:26]} 11. Rxe4 {[%emt 0:00:02]} Nf6 {[%emt 0:01:07]} 12. Re1 {[%emt 0:01:27]} Qb6 {[%emt 0:07:49]} 13. Qc2 {[%emt 0:02:40]} Bf5 {[%emt 0:03:13]} 14. Qe2 {[%emt 0:00:07]} h6 {[%emt 0:07:05]} 15. Ne5 {[%emt 0:01:48]} Rac8 {[%emt 0:03:31]} 16. g4 {[%emt 0:02:36]} Bh7 {[%emt 0:01:21]} 17. h4 {[%emt 0:00:20]} Qd8 {[%emt 0:05:22]} 18. g5 {[%emt 0:01:26]} hxg5 {[%emt 0:00:11]} 19. hxg5 {[%emt 0:00:10]} Nd5 {[%emt 0:01:38]} 20. g6 {[%emt 0:00:44]} fxg6 {[%emt 0:00:58]} 21. Qg4 {[%emt 0:01:18]} Nc7 {[%emt 0:01:50]} 22. Be4 {[%emt 0:00:28]} Bd6 {[%emt 0:04:09]} 23. Bg5 {[%emt 0:00:40]} Qe8 {[%emt 0:00:12]} 24. f4 {[%emt 0:00:06]} Bxe5 {[%emt 0:02:22]} 25. fxe5 {[%emt 0:00:10]} Rf5 {[%emt 0:02:52]} 26. Re2 {[%emt 0:01:19]} Qf7 {[%emt 0:06:13]} 27. Rh2 {[%emt 0:00:16]} Rf8 {[%emt 0:00:04]} 28. Bxf5 {[%emt 0:00:07]} gxf5 {[%emt 0:00:29]} 29. Qh4 {[%emt 0:00:10]} Qg6 {[%emt 0:00:36]} 30. Rg2 {[%emt 0:00:38]} Qf7 {[%emt 0:01:57]} 31. Kf2 {[%emt 0:00:18]} f4 {[%emt 0:00:38]} 32. Bf6 {[%emt 0:00:05]} g6 {[%emt 0:00:14]} 33. Rh1 {[%emt 0:00:06]} Nd5 {[%emt 0:00:11]} 34. Rgh2 {[%emt 0:00:10]} Nxf6 {[%emt 0:00:41]} 35. exf6 {[%emt 0:00:06]} 1-0

[Event "32nd Panamerican Youth 2022"]
[Site "Montevideo"]
[Date "2022.07.02"]
[Round "9.19"]
[White "Caceres Benitez, Arturo Eduardo"]
[Black "Sloan, Jed"]
[Result "1/2-1/2"]
[ECO "B48"]
[WhiteElo "1570"]
[BlackElo "2058"]
[Annotator "RC"]
[PlyCount "63"]
[EventDate "2022.06.26"]
[EventType "swiss"]
[EventCountry "URU"]
[SourceTitle "playchess.com"]
[Source "ChessBase"]
[SourceQuality "1"]
[TimeControl "5400+30"]

1. e4 {[%emt 0:00:04]} c5 {[%emt 0:00:02]} 2. Nf3 {[%emt 0:01:37]} e6 {[%emt 0:00:01]} 3. d4 {[%emt 0:00:25]} cxd4 {[%emt 0:00:03]} 4. Nxd4 {[%emt 0:00:31]} Nc6 {[%emt 0:00:12]} 5. Nc3 {[%emt 0:00:30]} Qc7 {[%emt 0:00:09]} 6. Be3 {[%emt 0:00:19]} a6 {[%emt 0:00:00]} 7. a3 {[%emt 0:00:23]} Nf6 {[%emt 0:01:02]} 8. f4 {[%emt 0:00:36]} d6 {[%emt 0:00:15]} 9. Be2 {[%emt 0:00:41]} Be7 {[%emt 0:00:27]} 10. O-O {[%emt 0:00:48]} O-O {[%emt 0:00:14]} 11. Kh1 {[%emt 0:00:48]} Nxd4 {[%emt 0:00:11]} 12. Qxd4 {[%emt 0:01:33]} b5 {[%emt 0:07:09]} 13. Rad1 {[%emt 0:02:51]} Bb7 {[%emt 0:01:26]} 14. Rf3 {[%emt 0:02:17]} e5 {[%emt 0:15:35]} 15. Qd3 {[%emt 0:01:03]} Nxe4 {[%emt 0:08:34]} 16. Nxe4 {[%emt 0:05:46]} d5 {[%emt 0:00:32]} 17. Rh3 {[%emt 0:01:29]} dxe4 {[%emt 0:03:45]} 18. Qd7 {[%emt 0:00:10]} Rac8 {[%emt 0:17:18]} 19. fxe5 Rfd8 {[%emt 0:05:05]} 20. Qf5 {[%emt 0:08:17]} g6 {[%emt 0:04:35]} 21. Qf4 Rxd1+ {[%emt 0:06:38]} 22. Bxd1 {[%emt 0:01:06]} Rd8 {[%emt 0:00:59]} 23. Be2 {[%emt 0:08:01]} Bf8 {[%emt 0:11:09]} 24. c3 {[%emt 0:00:30]} Bg7 {[%emt 0:01:48]} 25. Bd4 Re8 {[%emt 0:02:03]} 26. Bd1 {[%emt 0:04:19]} Qc4 27. e6 {[%emt 0:04:32]} Rxe6 {[%emt 0:01:53]} 28. Bxg7 {[%emt 0:00:20]} Kxg7 {[%emt 0:00:45]} 29. Rxh7+ {[%emt 0:00:50]} Kxh7 {[%emt 0:00:24]} 30. Qxf7+ {[%emt 0:00:04]} Kh6 {[%emt 0:04:30]} 31. Qf8+ {[%emt 0:00:40]} Kh7 {[%emt 0:01:05]} 32. Qf7+ {[%emt 0:00:03]} 1/2-1/2

[Event "32nd Panamerican Youth 2022"]
[Site "Montevideo"]
[Date "2022.07.02"]
[Round "9.20"]
[White "Handsztok, Matias"]
[Black "Caceres Sandoval, Eduardo"]
[Result "1/2-1/2"]
[ECO "D93"]
[WhiteElo "1944"]
[BlackElo "1677"]
[Annotator "RC"]
[PlyCount "106"]
[EventDate "2022.06.26"]
[EventType "swiss"]
[EventCountry "URU"]
[SourceTitle "playchess.com"]
[Source "ChessBase"]
[SourceQuality "1"]
[TimeControl "5400+30"]

1. d4 {[%emt 0:00:03]} Nf6 {[%emt 0:09:42]} 2. c4 {[%emt 0:00:11]} g6 {[%emt 0:00:07]} 3. Nf3 {[%emt 0:00:18]} Bg7 {[%emt 0:00:12]} 4. Nc3 {[%emt 0:00:26]} d5 {[%emt 0:00:06]} 5. Bf4 {[%emt 0:00:52]} O-O {[%emt 0:01:20]} 6. e3 {[%emt 0:00:16]} c5 {[%emt 0:01:10]} 7. Be2 {[%emt 0:03:46]} Nc6 {[%emt 0:01:35]} 8. O-O {[%emt 0:00:15]} cxd4 {[%emt 0:01:02]} 9. exd4 {[%emt 0:00:27]} dxc4 {[%emt 0:00:18]} 10. Bxc4 {[%emt 0:00:14]} Na5 {[%emt 0:00:18]} 11. Be2 {[%emt 0:02:39]} Be6 {[%emt 0:00:21]} 12. Re1 {[%emt 0:03:07]} Rc8 {[%emt 0:01:13]} 13. Ne5 {[%emt 0:06:04]} Nd7 {[%emt 0:03:33]} 14. Bf3 {[%emt 0:18:50]} Nxe5 {[%emt 0:03:31]} 15. Bxe5 {[%emt 0:00:07]} Bxe5 {[%emt 0:01:13]} 16. Rxe5 {[%emt 0:00:12]} Nc4 {[%emt 0:00:33]} 17. Re2 {[%emt 0:00:54]} Qa5 {[%emt 0:07:08]} 18. d5 {[%emt 0:01:03]} Bf5 {[%emt 0:00:06]} 19. Qd4 {[%emt 0:02:10]} Rfe8 {[%emt 0:17:21]} 20. h3 {[%emt 0:12:38]} b6 {[%emt 0:01:53]} 21. Rae1 {[%emt 0:01:39]} Rc7 {[%emt 0:07:26]} 22. d6 {[%emt 0:02:04]} Nxd6 {[%emt 0:04:24]} 23. Nd5 {[%emt 0:00:14]} Rc4 {[%emt 0:00:21]} 24. Qe5 {[%emt 0:08:02]} Be6 {[%emt 0:01:44]} 25. Nxe7+ {[%emt 0:00:50]} Rxe7 {[%emt 0:00:03]} 26. Qxd6 {[%emt 0:00:10]} Qc5 {[%emt 0:00:51]} 27. Qd8+ {[%emt 0:01:57]} Kg7 {[%emt 0:00:03]} 28. Rd2 {[%emt 0:06:05]} Rc1 {[%emt 0:02:04]} 29. Bd1 {[%emt 0:03:42]} Qc7 {[%emt 0:01:50]} 30. Qd4+ {[%emt 0:00:07]} Kg8 {[%emt 0:00:06]} 31. Qe3 {[%emt 0:02:05]} Rd7 {[%emt 0:04:54]} 32. f4 {[%emt 0:05:58]} Qc5 {[%emt 0:05:16]} 33. Qxc5 {[%emt 0:00:46]} bxc5 {[%emt 0:01:19]} 34. Rxd7 {[%emt 0:00:08]} Bxd7 {[%emt 0:00:01]} 35. Kf2 {[%emt 0:00:20]} Be6 {[%emt 0:00:16]} 36. Bb3 {[%emt 0:00:59]} Rxe1 {[%emt 0:01:55]} 37. Kxe1 {[%emt 0:00:06]} Bxb3 {[%emt 0:04:49]} 38. axb3 {[%emt 0:00:06]} Kf8 {[%emt 0:01:38]} 39. Kd2 {[%emt 0:00:11]} Ke7 {[%emt 0:00:04]} 40. Kd3 {[%emt 0:00:09]} Kd6 {[%emt 0:01:00]} 41. Kc4 {[%emt 0:00:30]} Kc6 {[%emt 0:02:53]} 42. b4 {[%emt 0:03:20]} cxb4 {[%emt 0:00:03]} 43. Kxb4 {[%emt 0:00:07]} Kb6 {[%emt 0:00:14]} 44. Ka4 {[%emt 0:00:08]} a5 {[%emt 0:02:00]} 45. g4 {[%emt 0:00:12]} h5 {[%emt 0:01:45]} 46. g5 {[%emt 0:05:48]} h4 {[%emt 0:01:25]} 47. b3 {[%emt 0:00:15]} Ka6 {[%emt 0:00:03]} 48. b4 {[%emt 0:00:33]} axb4 {[%emt 0:00:10]} 49. Kxb4 {[%emt 0:00:05]} Kb6 {[%emt 0:00:01]} 50. Kc4 {[%emt 0:00:08]} Kc6 {[%emt 0:00:04]} 51. Kd4 {[%emt 0:00:13]} Kd6 {[%emt 0:00:11]} 52. Ke4 {[%emt 0:00:05]} Ke6 {[%emt 0:00:01]} 53. f5+ {[%emt 0:01:41]} Kd6 {[%emt 0:00:03]} 1/2-1/2

[Event "32nd Panamerican Youth 2022"]
[Site "Montevideo"]
[Date "2022.07.02"]
[Round "9.21"]
[White "Francisco Guecamburu, Candela Be"]
[Black "Gonzalez Gonzalez, Valentina Anto"]
[Result "1-0"]
[ECO "C10"]
[WhiteElo "2240"]
[BlackElo "1457"]
[Annotator "TA"]
[PlyCount "37"]
[EventDate "2022.06.26"]
[EventType "swiss"]
[EventCountry "URU"]
[SourceTitle "playchess.com"]
[Source "ChessBase"]
[SourceQuality "1"]
[TimeControl "5400+30"]

{[%evp 9,37,23,27,29,36,11,23,15,9,-29,0,-38,1,0,72,72,65,66,166,168,327,329,324,322,396,423,596,514,494,466]} 1. e4 {[%emt 0:00:03]} e6 {[%emt 0:00:03]} 2. d4 {[%emt 0:00:09]} d5 {[%emt 0:00:10]} 3. Nc3 {[%emt 0:00:06]} Nc6 {[%emt 0:00:00]} 4. e5 {[%emt 0:04:46]} f6 {[%emt 0:00:07]} 5. f4 {[%emt 0:12:12]} fxe5 {[%emt 0:00:34]} 6. dxe5 {[%emt 0:00:30] C10: French with 3 Nc3: Unusual Black 3rd moves and 3...dxe4.} Bc5 {[%emt 0:01:51]} 7. Nf3 {[%emt 0:00:39]} Nh6 {[%emt 0:00:15]} 8. Na4 {[%emt 0:01:38] White has an edge.} Be7 {[%emt 0:02:03]} 9. Be3 {[%emt 0:11:22] [#]} b6 $146 {[%emt 0:07:47]} ({Predecessor:} 9... O-O 10. Qd2 Bd7 11. Nc5 Bc8 12. Nb3 a5 13. a4 b6 14. c3 Ba6 15. Bxa6 Rxa6 {1-0 (37) Perelshteyn,E (2540)-Montalvo Rosario,A (2218) Santo Domingo 2006}) 10. Qd2 {[%emt 0:12:30]} Nb8 {[%emt 0:11:22]} 11. c4 $36 {[%emt 0:20:31][%mdl 2048] Black is under pressure.} O-O {[%emt 0:27:26]} (11... c5 $1 $11) 12. O-O-O {[%emt 0:07:27][%cal Rc4d5] White is more active.} Nf5 {[%emt 0:01:04]} 13. Bf2 {[%emt 0:00:59][%cal Rc4d5]} b5 {[%emt 0:04:44]} (13... Bb7 $14) 14. cxb5 $18 {[%emt 0:00:59]} a5 $2 {[%emt 0:01:08] [#]} (14... a6 15. b6 Nd7) 15. Kb1 {[%emt 0:03:01]} Nd7 {[%emt 0:00:36]} 16. Bd3 {[%emt 0:01:16]} Bb4 {[%emt 0:03:42]} 17. Qc2 {[%emt 0:00:35]} Nb6 {[%emt 0:01:03]} (17... Kh8 {is a better defense.} 18. Bxf5 Rxf5) 18. Nxb6 {[%emt 0:01:46]} cxb6 {[%emt 0:00:01]} 19. g4 {Weighted Error Value: White=0.13 (very precise) /Black=0.50} 1-0

[Event "32nd Panamerican Youth 2022"]
[Site "Montevideo"]
[Date "2022.07.02"]
[Round "9.22"]
[White "Bravo Mallco, Kate Azumi"]
[Black "Beltran Salvador, Milka"]
[Result "1-0"]
[ECO "B48"]
[WhiteElo "1958"]
[BlackElo "1694"]
[Annotator "RC"]
[PlyCount "41"]
[EventDate "2022.06.26"]
[EventType "swiss"]
[EventCountry "URU"]
[SourceTitle "playchess.com"]
[Source "ChessBase"]
[SourceQuality "1"]
[TimeControl "5400+30"]

1. e4 {[%emt 0:00:32]} c5 {[%emt 0:00:49]} 2. Nf3 {[%emt 0:00:26]} Nc6 {[%emt 0:00:42]} 3. d4 {[%emt 0:00:30]} cxd4 {[%emt 0:00:30]} 4. Nxd4 {[%emt 0:00:30]} e6 {[%emt 0:00:30]} 5. Nc3 {[%emt 0:00:30]} Qc7 {[%emt 0:00:30]} 6. Be3 {[%emt 0:00:30]} a6 {[%emt 0:00:30]} 7. Qf3 {[%emt 0:02:57]} Nf6 {[%emt 0:00:00]} 8. O-O-O {[%emt 0:00:21]} b5 {[%emt 0:02:46]} 9. e5 {[%emt 0:00:38]} b4 {[%emt 0:09:22]} 10. exf6 {[%emt 0:01:31]} bxc3 {[%emt 0:00:27]} 11. Nxc6 {[%emt 0:00:10]} cxb2+ {[%emt 0:03:00]} 12. Kb1 {[%emt 0:00:01]} Qxc6 {[%emt 0:02:00]} 13. Qxc6 {[%emt 0:01:05]} dxc6 {[%emt 0:00:05]} 14. Bd4 {[%emt 0:00:06]} Rg8 {[%emt 0:01:10]} 15. Bd3 {[%emt 0:02:01]} g6 {[%emt 0:08:02]} 16. Bc4 {[%emt 0:02:43]} Bd7 {[%emt 0:04:09]} 17. Rd3 {[%emt 0:02:25]} c5 {[%emt 0:02:59]} 18. Be5 {[%emt 0:00:44]} Bc6 {[%emt 0:02:29]} 19. Rhd1 {[%emt 0:04:24]} Be4 {[%emt 0:04:07]} 20. R3d2 {[%emt 0:00:30]} Bh6 {[%emt 0:00:30]} 21. f4 {[%emt 0:00:30]} 1-0